fUSD/lending_fUSD_20240502
["ID","MTS","AMOUNT","RATE_DAILY","PERIOD"]
[325301253,1714686650050,-1075.44,0.00030136,2]
[325301254,1714686650062,-500.0,0.00030136,2]
[325301255,1714686650072,-533.2,0.00030136,2]
[325301256,1714686650082,-770.69,0.00030136,2]
[325301257,1714686650091,-542.01,0.00030136,2]
[325301258,1714686650100,-500.0,0.00030136,2]
[325301259,1714686650109,-743.56,0.00030136,2]
[325301260,1714686650119,-500.0,0.00030136,2]
[325301261,1714686650128,-947.85,0.00030136,2]
[325301262,1714686650137,-500.0,0.00030136,2]
[325301263,1714686650147,-1179.98,0.00030136,2]
[325301264,1714686650156,-676.03,0.00030136,2]
[325301265,1714686650166,-500.0,0.00030136,2]
[325301266,1714686650175,-653.28,0.00030136,2]
[325301267,1714686650184,-500.0,0.00030136,2]
[325301268,1714686650194,-500.0,0.00030136,2]
[325301269,1714686650204,-500.0,0.00030136,2]
[325301270,1714686650213,-1221.83,0.00030136,2]
[325301271,1714686650222,-663.28,0.00030136,2]
[325301272,1714686650231,-500.0,0.00030136,2]
[325301273,1714686650241,-641.12,0.00030136,2]
[325301274,1714686650251,-500.0,0.00030136,2]
[325301275,1714686650261,-500.0,0.00030136,2]
[325301276,1714686650270,-745.75,0.00030136,2]
[325301277,1714686650280,-980.77,0.00030136,2]
[325301278,1714686650289,-500.0,0.00030136,2]
[325301279,1714686650299,-500.0,0.00030136,2]
[325301280,1714686650308,-500.0,0.00030136,2]
[325301281,1714686650317,-500.0,0.00030136,2]
[325301282,1714686650326,-755.36,0.00030136,2]
[325301283,1714686650336,-1941.43,0.00030136,2]
[325301284,1714686650345,-907.92,0.00030136,2]
[325301285,1714686650354,-500.0,0.00030136,2]
[325301286,1714686650363,-500.0,0.00030136,2]
[325301287,1714686650372,-500.0,0.00030136,2]
[325301288,1714686650381,-500.0,0.00030136,2]
[325301289,1714686650390,-822.44,0.00030136,2]
[325301290,1714686650399,-500.0,0.00030136,2]
[325301291,1714686650408,-623.06,0.00030136,2]
[325301292,1714686650417,-500.0,0.00030136,2]
[325301293,1714686650427,-500.0,0.00030136,2]
[325301294,1714686650437,-500.0,0.00030136,2]
[325301295,1714686650446,-1230.66,0.00030136,2]
[325301296,1714686650455,-500.0,0.00030136,2]
[325301297,1714686650464,-372.56014417,0.00030136,2]
[325301298,1714686650474,-500.0,0.00030136,2]
[325301299,1714686650483,-500.0,0.00030136,2]
[325301300,1714686650492,-520.02,0.00030136,2]
[325301301,1714686650502,-1115.54,0.00030136,2]
[325301302,1714686650512,-500.0,0.00030136,2]
[325301303,1714686650522,-500.0,0.00030136,2]
[325301304,1714686650531,-500.0,0.00030136,2]
[325301305,1714686650540,-868.71,0.00030136,2]
[325301306,1714686650549,-633.85,0.00030136,2]
[325301307,1714686650558,-500.0,0.00030136,2]
[325301308,1714686650567,-500.0,0.00030136,2]
[325301309,1714686650577,-500.0,0.00030136,2]
[325301310,1714686650586,-500.0,0.00030136,2]
[325301311,1714686650595,-500.0,0.00030136,2]
[325301312,1714686650604,-500.0,0.00030136,2]
[325301313,1714686650614,-1001.32,0.00030136,2]
[325301314,1714686650623,-500.0,0.00030136,2]
[325301315,1714686650632,-1367.19,0.00030136,2]
[325301316,1714686650642,-665.95,0.00030136,2]
[325301317,1714686650651,-500.0,0.00030136,2]
[325301318,1714686650660,-5116.35,0.00030136,2]
[325301319,1714686650670,-500.0,0.00030136,2]
[325301320,1714686650679,-500.0,0.00030136,2]
[325301321,1714686650688,-500.0,0.00030136,2]
[325301322,1714686650698,-1539.85,0.00030136,2]
[325301323,1714686650708,-1454.53,0.00030136,2]
[325301324,1714686650717,-969.1,0.00030136,2]
[325301325,1714686650727,-500.0,0.00030136,2]
[325301326,1714686650737,-1106.61,0.00030136,2]
[325301327,1714686650746,-500.0,0.00030136,2]
[325301328,1714686650756,-500.0,0.00030136,2]
[325301329,1714686650765,-500.0,0.00030136,2]
[325301330,1714686650779,-500.0,0.00030136,2]
[325301331,1714686650788,-500.0,0.00030136,2]
[325301332,1714686650797,-10444.68,0.00030136,2]
[325301333,1714686650806,-523.43,0.00030136,2]
[325301334,1714686650819,-500.0,0.00030136,2]
[325301335,1714686650829,-500.0,0.00030136,2]
[325301336,1714686650838,-1454.59,0.00030136,2]
[325301337,1714686650848,-500.0,0.00030136,2]
[325301338,1714686650857,-500.0,0.00030136,2]
[325301339,1714686650867,-1116.71,0.00030136,2]
[325301340,1714686650876,-986.4,0.00030136,2]
[325301341,1714686650886,-500.0,0.00030136,2]
[325301342,1714686650895,-500.0,0.00030136,2]
[325301343,1714686650905,-500.0,0.00030136,2]
[325301344,1714686650914,-851.27,0.00030136,2]
[325301345,1714686650923,-1973.86,0.00030136,2]
[325301346,1714686650932,-3577.68,0.00030136,2]
[325301347,1714686650943,-500.0,0.00030136,2]
[325301348,1714686650952,-500.0,0.00030136,2]
[325301349,1714686650961,-819.06,0.00030136,2]
[325301350,1714686650971,-500.0,0.00030136,2]
[325301351,1714686650981,-500.0,0.00030136,2]
[325301352,1714686650990,-887.83,0.00030136,2]
[325301353,1714686651000,-9615.22,0.00030136,2]
[325301354,1714686651009,-500.0,0.00030136,2]
[325301355,1714686651019,-746.33,0.00030136,2]
[325301356,1714686651028,-525.6,0.00030136,2]
[325301357,1714686651037,-1076.78,0.00030136,2]
[325301358,1714686651046,-1507.5,0.00030136,2]
[325301359,1714686651056,-1898.55,0.00030136,2]
[325301360,1714686651065,-500.0,0.00030136,2]
[325301361,1714686651074,-778.18,0.00030136,2]
[325301362,1714686651083,-1214.77,0.00030136,2]
[325301363,1714686651093,-500.0,0.00030136,2]
[325301364,1714686651102,-1869.85,0.00030136,2]
[325301365,1714686651111,-500.0,0.00030136,2]
[325301366,1714686651120,-765.27,0.00030136,2]
[325301367,1714686651129,-1332.63,0.00030136,2]
[325301368,1714686651139,-1494.12,0.00030136,2]
[325301369,1714686651148,-2808.71,0.00030136,2]
[325301370,1714686651157,-848.89,0.00030136,2]
[325301371,1714686651166,-748.84,0.00030136,2]
[325301372,1714686651175,-26442.21,0.00030136,2]
[325301373,1714686651184,-500.0,0.00030136,2]
[325301374,1714686651194,-500.0,0.00030136,2]
[325301375,1714686651203,-500.0,0.00030136,2]
[325301376,1714686651211,-7720.07,0.00030136,2]
[325301377,1714686651220,-748.05,0.00030136,2]
[325301378,1714686651229,-500.0,0.00030136,2]
[325301379,1714686651239,-1273.99,0.00030136,2]
[325301380,1714686651248,-862.76,0.00030136,2]
[325301381,1714686651257,-7197.96,0.00030136,2]
[325301382,1714686651266,-500.0,0.00030136,2]
[325301383,1714686651275,-500.0,0.00030136,2]
[325301384,1714686651284,-16153.0,0.00030136,2]
[325301385,1714686651293,-847.87,0.00030136,2]
[325301386,1714686651303,-759.69,0.00030136,2]
[325301387,1714686651312,-652.7,0.00030136,2]
[325301388,1714686651321,-37893.06,0.00030136,2]
[325301389,1714686651332,-500.0,0.00030136,2]
[325301390,1714686651343,-623.36,0.00030136,2]
[325301391,1714686651354,-2087.53,0.00030136,2]
[325301392,1714686651363,-500.0,0.00030136,2]
[325301393,1714686651372,-2200.02,0.00030136,2]
[325301394,1714686651382,-1420.9,0.00030136,2]
[325301395,1714686651391,-10025.94,0.00030136,2]
[325301396,1714686651400,-936.72,0.00030136,2]
[325301397,1714686651410,-899.02,0.00030136,2]
[325301398,1714686651419,-1013.84,0.00030136,2]
[325301399,1714686651429,-500.0,0.00030136,2]
[325301400,1714686651438,-2390.03,0.00030136,2]
[325301401,1714686651447,-3613.98,0.00030136,2]
[325301402,1714686651457,-2485.7,0.00030136,2]
[325301403,1714686651466,-1283.18497661,0.00030136,2]
[325301404,1714686651475,-2608.35,0.00030136,2]
[325301405,1714686651487,-500.0,0.00030136,2]
[325301406,1714686651498,-623.79,0.00030136,2]
[325301407,1714686651508,-500.0,0.00030136,2]
[325301408,1714686651518,-661.74,0.00030136,2]
[325301409,1714686651528,-813.27,0.00030136,2]
[325301410,1714686651538,-1084.38,0.00030136,2]
[325301411,1714686651548,-500.0,0.00030136,2]
[325301412,1714686651557,-500.0,0.00030136,2]
[325301413,1714686651566,-6799.36,0.00030136,2]
[325301414,1714686651575,-2813.98,0.00030136,2]
[325301415,1714686651584,-822.14,0.00030136,2]
[325301416,1714686651593,-500.0,0.00030136,2]
[325301417,1714686651603,-2091.13,0.00030136,2]
[325301418,1714686651612,-542.92,0.00030136,2]
[325301419,1714686651621,-500.0,0.00030136,2]
[325301420,1714686651630,-708.4,0.00030136,2]
[325301421,1714686651639,-500.0,0.00030136,2]
[325301422,1714686651649,-500.0,0.00030136,2]
[325301423,1714686651658,-2730.73,0.00030136,2]
[325301424,1714686651668,-500.0,0.00030136,2]
[325301425,1714686651677,-3095.6,0.00030136,2]
[325301426,1714686651687,-500.0,0.00030136,2]
[325301427,1714686651696,-2259.43,0.00030136,2]
[325301428,1714686651705,-521.83,0.00030136,2]
[325301429,1714686651714,-500.0,0.00030136,2]
[325301430,1714686651723,-1132.55,0.00030136,2]
[325301431,1714686651733,-601.93,0.00030136,2]
[325301432,1714686651743,-500.0,0.00030136,2]
[325301433,1714686651753,-9902.82,0.00030136,2]
[325301434,1714686651762,-500.0,0.00030136,2]
[325301435,1714686651774,-758.39,0.00030136,2]
[325301436,1714686651787,-500.0,0.00030136,2]
[325301437,1714686651797,-628.77,0.00030136,2]
[325301438,1714686651806,-522.89,0.00030136,2]
[325301439,1714686651816,-6079.29,0.00030136,2]
[325301440,1714686651827,-2915.11,0.00030136,2]
[325301441,1714686651836,-6844.26,0.00030136,2]
[325301442,1714686651845,-581.23,0.00030136,2]
[325301443,1714686651855,-776.84,0.00030136,2]
[325301444,1714686651864,-601.83,0.00030136,2]
[325301445,1714686651873,-1917.49,0.00030136,2]
[325301446,1714686651883,-1118.82,0.00030136,2]
[325301447,1714686651892,-1039.59,0.00030136,2]
[325301448,1714686651901,-935.34,0.00030136,2]
[325301449,1714686651911,-1047.53,0.00030136,2]
[325301450,1714686651920,-500.0,0.00030136,2]
[325301451,1714686651929,-55497.91,0.00030136,2]
[325301452,1714686651939,-500.0,0.00030136,2]
[325301453,1714686651948,-500.0,0.00030136,2]
[325301454,1714686651957,-725.73,0.00030136,2]
[325301455,1714686651967,-1027.64,0.00030136,2]
[325301456,1714686651976,-24224.22,0.00030136,2]
[325301457,1714686651985,-1536.48,0.00030136,2]
[325301458,1714686651995,-500.0,0.00030136,2]
[325301459,1714686652006,-500.0,0.00030136,2]
[325301460,1714686652016,-500.0,0.00030136,2]
[325301461,1714686652025,-1511.37,0.00030136,2]
[325301462,1714686652035,-500.0,0.00030136,2]
[325301463,1714686652044,-500.0,0.00030136,2]
[325301464,1714686652054,-500.0,0.00030136,2]
[325301465,1714686652063,-4410.34,0.00030136,2]
[325301466,1714686652073,-2235.86,0.00030136,2]
[325301467,1714686652083,-863.34,0.00030136,2]
[325301468,1714686652092,-5069.58,0.00030136,2]
[325301469,1714686652101,-2269.91,0.00030136,2]
[325301470,1714686652111,-7334.02,0.00030136,2]
[325301471,1714686652120,-500.0,0.00030136,2]
[325301472,1714686652129,-500.0,0.00030136,2]
[325301473,1714686652138,-2505.7,0.00030136,2]
[325301474,1714686652148,-1722.02,0.00030136,2]
[325301475,1714686652157,-1573.95,0.00030136,2]
[325301476,1714686652167,-753.72,0.00030136,2]
[325301477,1714686652176,-500.0,0.00030136,2]
[325301478,1714686652186,-625.47,0.00030136,2]
[325301479,1714686652195,-569.15681521,0.00030136,2]
[325301480,1714686652204,-2326.88,0.00030136,2]
[325301481,1714686652214,-500.0,0.00030136,2]
[325301482,1714686652224,-500.0,0.00030136,2]
[325301483,1714686652234,-500.0,0.00030136,2]
[325301484,1714686652243,-500.0,0.00030136,2]
[325301485,1714686652253,-1097.91,0.00030136,2]
[325301486,1714686652263,-2271.83,0.00030136,2]
[325301487,1714686652272,-1272.77,0.00030136,2]
[325301488,1714686652282,-3282.13,0.00030136,2]
[325301489,1714686652292,-2327.52,0.00030136,2]
[325301490,1714686652301,-1970.05,0.00030136,2]
[325301491,1714686652312,-14524.03,0.00030136,2]
[325301492,1714686652321,-860.16,0.00030136,2]
[325301493,1714686652331,-500.0,0.00030136,2]
[325301494,1714686652341,-500.0,0.00030136,2]
[325301495,1714686652350,-500.0,0.00030136,2]
[325301496,1714686652361,-1157.93,0.00030136,2]
[325301497,1714686652371,-500.0,0.00030136,2]
[325301498,1714686652381,-1023.64,0.00030136,2]
[325301499,1714686652391,-500.0,0.00030136,2]
[325301500,1714686652400,-3744.53,0.00030136,2]
[325301501,1714686652410,-500.0,0.00030136,2]
[325301502,1714686652420,-500.0,0.00030136,2]
[325301503,1714686652430,-500.0,0.00030136,2]
[325301504,1714686652439,-500.0,0.00030136,2]
[325301505,1714686652449,-401.36,0.00030136,2]
[325301506,1714686652459,-500.0,0.00030136,2]
[325301507,1714686652469,-500.0,0.00030136,2]
[325301508,1714686652478,-500.0,0.00030136,2]
[325301509,1714686652488,-500.0,0.00030136,2]
[325301510,1714686652498,-500.0,0.00030136,2]
[325301511,1714686652507,-5851.38,0.00030136,2]
[325301512,1714686652516,-1309.0,0.00030136,2]
[325301513,1714686652526,-1281.56,0.00030136,2]
[325301514,1714686652536,-500.0,0.00030136,2]
[325301515,1714686652545,-3015.36,0.00030136,2]
[325301516,1714686652555,-4998.46,0.00030136,2]
[325301517,1714686652564,-1468.33,0.00030136,2]
[325301518,1714686652574,-2293.55,0.00030136,2]
[325301519,1714686652585,-992.6,0.00030136,2]
[325301520,1714686652597,-2716.45,0.00030136,2]
[325301521,1714686652608,-611.07,0.00030136,2]
[325301522,1714686652619,-1157.21,0.00030136,2]
[325301523,1714686652629,-500.0,0.00030136,2]
[325301524,1714686652638,-500.0,0.00030136,2]
[325301525,1714686652649,-1201.24,0.00030136,2]
[325301526,1714686652658,-500.0,0.00030136,2]
[325301527,1714686652668,-500.0,0.00030136,2]
[325301528,1714686652678,-1264.32,0.00030136,2]
[325301529,1714686652688,-500.0,0.00030136,2]
[325301530,1714686652698,-2355.26,0.00030136,2]
[325301531,1714686652708,-2303.03,0.00030136,2]
[325301532,1714686652719,-560.00260541,0.00030136,2]
[325301533,1714686652729,-500.0,0.00030136,2]
[325301534,1714686652738,-500.0,0.00030136,2]
[325301535,1714686652748,-4486.25,0.00030136,2]
[325301536,1714686652758,-150.0,0.00030136,2]
[325301537,1714686652767,-500.0,0.00030136,2]
[325301538,1714686652780,-14227.8,0.00030136,2]
[325301539,1714686652790,-500.0,0.00030136,2]
[325301540,1714686652800,-500.0,0.00030136,2]
[325301541,1714686652812,-1807.48,0.00030136,2]
[325301542,1714686652823,-2911.84,0.00030136,2]
[325301543,1714686652833,-680.24,0.00030136,2]
[325301544,1714686652842,-697.68,0.00030136,2]
[325301545,1714686652851,-1393.37,0.00030136,2]
[325301546,1714686652862,-5019.25,0.00030136,2]
[325301547,1714686652872,-1228.03,0.00030136,2]
[325301548,1714686652882,-500.0,0.00030136,2]
[325301549,1714686652892,-670.94,0.00030136,2]
[325301550,1714686652902,-4386.58,0.00030136,2]
[325301551,1714686652911,-5601.84,0.00030136,2]
[325301552,1714686652921,-3126.38,0.00030136,2]
[325301553,1714686652930,-1072.19,0.00030136,2]
[325301554,1714686652940,-500.0,0.00030136,2]
[325301555,1714686652951,-2421.42,0.00030136,2]
[325301556,1714686652961,-4006.64,0.00030136,2]
[325301557,1714686652971,-764.19,0.00030136,2]
[325301558,1714686652980,-500.0,0.00030136,2]
[325301559,1714686652990,-2853.25,0.00030136,2]
[325301560,1714686653001,-2003.34,0.00030136,2]
[325301561,1714686653011,-578.22,0.00030136,2]
[325301562,1714686653022,-500.0,0.00030136,2]
[325301563,1714686653031,-13559.47,0.00030136,2]
[325301564,1714686653040,-3793.93,0.00030136,2]
[325301565,1714686653050,-500.0,0.00030136,2]
[325301566,1714686653064,-3387.88,0.00030136,2]
[325301567,1714686653074,-500.0,0.00030136,2]
[325301568,1714686653084,-500.0,0.00030136,2]
[325301569,1714686653093,-2002.39,0.00030136,2]
[325301570,1714686653103,-500.0,0.00030136,2]
[325301571,1714686653113,-4495.12,0.00030136,2]
[325301572,1714686653122,-500.0,0.00030136,2]
[325301573,1714686653133,-500.0,0.00030136,2]
[325301574,1714686653147,-500.0,0.00030136,2]
[325301575,1714686653157,-500.0,0.00030136,2]
[325301576,1714686653167,-500.0,0.00030136,2]
[325301577,1714686653176,-500.0,0.00030136,2]
[325301578,1714686653186,-500.0,0.00030136,2]
[325301579,1714686653196,-1486.8,0.00030136,2]
[325301580,1714686653211,-820.19,0.00030136,2]
[325301581,1714686653220,-500.0,0.00030136,2]
[325301582,1714686653230,-4884.76,0.00030136,2]
[325301583,1714686653239,-500.0,0.00030136,2]
[325301584,1714686653250,-1429.34,0.00030136,2]
[325301585,1714686653260,-805.21,0.00030136,2]
[325301586,1714686653269,-6098.53,0.00030136,2]
[325301587,1714686653279,-605.63,0.00030136,2]
[325301588,1714686653288,-500.0,0.00030136,2]
[325301589,1714686653298,-2944.08,0.00030136,2]
[325301590,1714686653308,-2542.03,0.00030136,2]
[325301591,1714686653317,-658.45,0.00030136,2]
[325301592,1714686653327,-2477.22,0.00030136,2]
[325301593,1714686653336,-631.62,0.00030136,2]
[325301594,1714686653346,-1225.56,0.00030136,2]
[325301595,1714686653355,-500.0,0.00030136,2]
[325301596,1714686653366,-684.93,0.00030136,2]
[325301597,1714686653375,-1224.67,0.00030136,2]
[325301598,1714686653385,-944.59,0.00030136,2]
[325301599,1714686653394,-500.0,0.00030136,2]
[325301600,1714686653404,-500.0,0.00030136,2]
[325301601,1714686653414,-2250.25,0.00030136,2]
[325301602,1714686653423,-2072.64,0.00030136,2]
[325301603,1714686653433,-10784.94,0.00030136,2]
[325301604,1714686653443,-500.0,0.00030136,2]
[325301605,1714686653452,-500.0,0.00030136,2]
[325301606,1714686653461,-638.69,0.00030136,2]
[325301607,1714686653471,-755.86,0.00030136,4]
[325301608,1714686653480,-4836.91,0.00030136,2]
[325301609,1714686653490,-755.86,0.00030136,4]
[325301610,1714686653500,-1308.43,0.00030136,2]
[325301611,1714686653510,-500.0,0.00030136,2]
[325301612,1714686653519,-755.86,0.00030136,4]
[325301613,1714686653529,-755.86,0.00030136,4]
[325301614,1714686653539,-755.86,0.00030136,4]
[325301615,1714686653548,-755.86,0.00030136,4]
[325301616,1714686653558,-9541.71,0.00030136,2]
[325301617,1714686653568,-755.86,0.00030136,4]
[325301618,1714686653577,-1604.49,0.00030136,2]
[325301619,1714686653587,-755.86,0.00030136,4]
[325301620,1714686653596,-755.86,0.00030136,4]
[325301621,1714686653606,-500.0,0.00030136,2]
[325301622,1714686653616,-1765.11,0.00030136,2]
[325301623,1714686653626,-755.86,0.00030136,4]
[325301624,1714686653636,-500.0,0.00030136,2]
[325301625,1714686653646,-500.0,0.00030136,2]
[325301626,1714686653656,-500.0,0.00030136,2]
[325301627,1714686653665,-7454.18,0.00030136,2]
[325301628,1714686653675,-500.0,0.00030136,2]
[325301629,1714686653685,-1003.98,0.00030136,2]
[325301630,1714686653694,-10383.43,0.00030136,2]
[325301631,1714686653703,-562.17,0.00030136,2]
[325301632,1714686653713,-9568.3,0.00030136,2]
[325301633,1714686653723,-6249.14,0.00030136,2]
[325301634,1714686653733,-500.0,0.00030136,2]
[325301635,1714686653743,-500.0,0.00030136,2]
[325301636,1714686653755,-748.97,0.00030136,2]
[325301637,1714686653765,-6280.71,0.00030136,2]
[325301638,1714686653779,-500.0,0.00030136,2]
[325301639,1714686653788,-500.0,0.00030136,2]
[325301640,1714686653799,-500.0,0.00030136,2]
[325301641,1714686653808,-500.0,0.00030136,2]
[325301642,1714686653819,-3507.51,0.00030136,2]
[325301643,1714686653829,-500.0,0.00030136,2]
[325301644,1714686653838,-500.0,0.00030136,2]
[325301645,1714686653848,-500.0,0.00030136,2]
[325301646,1714686653859,-1933.65,0.00030136,2]
[325301647,1714686653868,-500.0,0.00030136,2]
[325301648,1714686653879,-500.0,0.00030136,2]
[325301649,1714686653889,-1874.1,0.00030136,2]
[325301650,1714686653899,-4427.9,0.00030136,2]
[325301651,1714686653908,-41218.55,0.00030136,2]
[325301652,1714686653918,-1985.25,0.00030136,2]
[325301653,1714686653928,-500.0,0.00030136,2]
[325301654,1714686653937,-6773.92,0.00030136,2]
[325301655,1714686653947,-500.0,0.00030136,2]
[325301656,1714686653956,-3415.75,0.00030136,2]
[325301657,1714686653966,-2684.73,0.00030136,2]
[325301658,1714686653976,-1505.97,0.00030136,2]
[325301659,1714686653985,-1267.12,0.00030136,2]
[325301660,1714686653995,-500.0,0.00030136,2]
[325301661,1714686654005,-503.73820111,0.00030136,2]
[325301662,1714686654014,-561.69,0.00030136,2]
[325301663,1714686654024,-11863.31,0.00030136,2]
[325301664,1714686654033,-500.0,0.00030136,2]
[325301665,1714686654043,-1149.85,0.00030136,2]
[325301666,1714686654052,-2682.45,0.00030136,2]
[325301667,1714686654062,-6929.85,0.00030136,2]
[325301668,1714686654072,-388.77,0.00030136,2]
[325301669,1714686654082,-500.0,0.00030136,2]
[325301670,1714686654091,-881.56,0.00030136,2]
[325301671,1714686654101,-13656.32,0.00030136,2]
[325301672,1714686654111,-526.81,0.00030136,2]
[325301673,1714686654120,-550.6653066,0.00030136,2]
[325301674,1714686654130,-500.0,0.00030136,2]
[325301675,1714686654140,-500.0,0.00030136,2]
[325301676,1714686654151,-1625.32,0.00030136,2]
[325301677,1714686654160,-500.0,0.00030136,2]
[325301678,1714686654170,-1385.99,0.00030136,2]
[325301679,1714686654179,-1313.93,0.00030136,2]
[325301680,1714686654189,-2288.77,0.00030136,2]
[325301681,1714686654199,-500.0,0.00030136,2]
[325301682,1714686654209,-500.30267779,0.00030136,2]
[325301683,1714686654218,-3339.52,0.00030136,2]
[325301684,1714686654228,-11261.58,0.00030136,2]
[325301685,1714686654237,-1431.25,0.00030136,2]
[325301686,1714686654246,-593.13,0.00030136,2]
[325301687,1714686654256,-500.0,0.00030136,4]
[325301688,1714686654266,-500.0,0.00030136,2]
[325301689,1714686654276,-500.0,0.00030136,4]
[325301690,1714686654285,-500.0,0.00030136,4]
[325301691,1714686654294,-500.0,0.00030136,4]
[325301692,1714686654304,-500.0,0.00030136,2]
[325301693,1714686654313,-500.0,0.00030136,4]
[325301694,1714686654322,-500.0,0.00030136,4]
[325301695,1714686654332,-500.0,0.00030136,4]
[325301696,1714686654341,-1105.95,0.00030136,2]
[325301697,1714686654351,-173.20158078,0.00030136,4]
[325301698,1714686654360,-503.44365,0.00030136,2]
[325301699,1714686654369,-840.06,0.00030136,2]
[325301700,1714686654379,-964.27,0.00030136,2]
[325301701,1714686654389,-1839.82,0.00030136,2]
[325301702,1714686654398,-6770.85,0.00030136,2]
[325301703,1714686654408,-3263.27,0.00030136,2]
[325301704,1714686654418,-500.0,0.00030136,2]
[325301705,1714686654428,-669.6,0.00030136,2]
[325301706,1714686654735,-4123.37,0.00030136,2]
[325301707,1714686654751,-4745.78,0.00030136,2]
[325301708,1714686654761,-500.0,0.00030136,2]
[325301709,1714686654770,-1185.64,0.00030136,2]
[325301710,1714686654781,-1003.58,0.00030136,2]
[325301711,1714686654790,-500.0,0.00030136,2]
[325301712,1714686654800,-500.0,0.00030136,2]
[325301713,1714686654813,-500.0,0.00030136,2]
[325301714,1714686654823,-2295.73,0.00030136,2]
[325301715,1714686654833,-500.0,0.00030136,2]
[325301716,1714686654843,-500.0,0.00030136,2]
[325301717,1714686654852,-500.0,0.00030136,2]
[325301718,1714686654862,-500.0,0.00030136,2]
[325301719,1714686654873,-500.0,0.00030136,2]
[325301720,1714686654883,-500.0,0.00030136,2]
[325301721,1714686654893,-500.0,0.00030136,2]
[325301722,1714686654903,-839.4,0.00030136,2]
[325301723,1714686654913,-500.0,0.00030136,2]
[325301724,1714686654923,-2595.03,0.00030136,2]
[325301725,1714686654933,-2139.56,0.00030136,2]
[325301726,1714686654943,-3050.15,0.00030136,2]
[325301727,1714686654952,-4543.5,0.00030136,2]
[325301728,1714686654962,-500.0,0.00030136,2]
[325301729,1714686654971,-607.8,0.00030136,2]
[325301730,1714686654981,-1623.77,0.00030136,2]
[325301731,1714686654990,-500.0,0.00030136,2]
[325301732,1714686654999,-500.0,0.00030136,2]
[325301733,1714686655010,-500.0,0.00030136,2]
[325301734,1714686655019,-625.86,0.00030137,2]
[325301735,1714686655029,-200.0,0.00030137,2]
[325301736,1714686655039,-3518.39,0.000302,2]
[325301737,1714686655048,-200.0,0.0003024,2]
[325301738,1714686655058,-212.0,0.0003024,2]
[325301739,1714686655068,-157.050306,0.00030248,4]
[325301740,1714686655077,-180.0,0.00030258,2]
[325301741,1714686655087,-561.15247917,0.00030282,2]
[325301742,1714686655096,-2936.99,0.000303,2]
[325301743,1714686655105,-500.0,0.00030323,2]
[325301744,1714686655114,-888.0,0.00030323,3]
[325301745,1714686655127,-166.99392,0.00030347,4]
[325301746,1714686655136,-157.050306,0.00030348,4]
[325301747,1714686655145,-251.04919594,0.000304,2]
[325301748,1714686655154,-150.0,0.000304,6]
[325301749,1714686655164,-666.0,0.00030409,2]
[325301750,1714686655173,-500.0,0.00030409,2]
[325301751,1714686655183,-500.0,0.00030409,2]
[325301752,1714686655192,-500.0,0.00030409,2]